bitfinex-derivatives/quotes_SOLF0:USTF0_20241215
["timestamp","ask_amount","ask_price","bid_price","bid_amount"]
[1734259782875,2.2839,218.97,218.96,5.13898596]
[1734259784874,2.2839,218.97,218.96,5.13935989]
[1734259785878,2.2839,218.97,218.96,5.13940995]
[1734259786073,2.2839,218.97,218.94,6.39080568]
[1734259786269,2.2839,218.97,218.95,5.13954794]
[1734259786474,2.2839,218.97,218.94,6.39080568]
[1734259786676,2.2841,218.96,218.95,5.13951845]
[1734259787974,2.2841,218.96,218.93,2.2843]
[1734259788172,2.2841,218.96,218.94,5.13948642]
[1734259788372,2.2841,218.96,218.95,5.13948642]
[1734259789379,2.2841,218.96,218.95,5.13946638]
[1734259791784,2.2841,218.96,218.95,5.139407]
[1734259794389,2.2841,218.96,218.93,2.2843]
[1734259794684,2.284,218.97,218.94,5.13954359]
[1734259794878,2.284,218.97,218.93,2.2843]
[1734259795075,2.284,218.97,218.94,5.13954359]
[1734259795385,2.284,218.97,218.95,5.13979952]
[1734259795679,2.284,218.97,218.93,2.2843]
[1734259795886,2.284,218.97,218.94,5.13979952]
[1734259796081,2.284,218.97,218.93,2.2843]
[1734259796283,2.2841,218.96,218.94,5.13993873]
[1734259796479,2.2841,218.96,218.92,8.67520568]
[1734259796680,2.2841,218.96,218.93,5.1401216]
[1734259796879,2.2841,218.96,218.94,5.1401216]
[1734259797084,2.2841,218.96,218.92,8.67520568]
[1734259797286,2.2841,218.96,218.93,5.14045186]
[1734259797583,2.2841,218.96,218.92,8.67520568]
[1734259797789,2.2841,218.96,218.93,5.14045186]
[1734259797983,2.2841,218.96,218.94,5.14045186]
[1734259798183,2.2841,218.96,218.95,5.14045186]
[1734259801089,2.2841,218.96,218.92,8.67520568]
[1734259801385,8.35080568,218.99,218.93,5.14130233]
[1734259801581,8.35080568,218.99,218.92,6.39080568]
[1734259801786,1.96,218.99,218.94,6.39080568]
[1734259801980,2.2841,218.95,218.94,6.39080568]
[1734259802185,6.39080568,218.98,218.89,59.31415081]
[1734259802482,6.39080568,218.98,218.91,6.39080568]
[1734259802685,2.284,218.97,218.92,5.1426046]
[1734259802882,6.39080568,218.98,218.91,6.39080568]
[1734259803088,6.39080568,218.98,218.93,6.39080568]
[1734259803289,6.39080568,218.98,218.89,59.31415081]
[1734259803491,6.39080568,218.98,218.92,6.39080568]
[1734259804592,2.2842,218.95,218.92,6.39080568]
[1734259806191,6.39080568,218.98,218.92,6.39080568]
[1734259807487,2.2844,218.93,218.92,6.39080568]
[1734259807691,2.2844,218.93,218.92,11.53344617]
[1734259809493,2.2844,218.93,218.92,11.53366941]
[1734259810593,2.2844,218.93,218.92,5.14286373]
[1734259810797,2.2845,218.92,218.9,6.39080568]
[1734259811097,2.2845,218.92,218.91,5.1429955]
[1734259811496,2.2845,218.92,218.9,6.39080568]
[1734259813195,8.35080568,218.94,218.89,57.77395081]
[1734259813396,6.39080568,218.92,218.9,5.14210909]
[1734259813590,6.39080568,218.92,218.89,57.77395081]
[1734259813787,2.2847,218.9,218.89,57.77395081]
[1734259813993,2.2847,218.9,218.89,62.91609734]
[1734259815591,2.2847,218.9,218.89,57.77395081]
[1734259815793,2.2847,218.9,218.89,62.9149034]
[1734259819197,2.2847,218.9,218.89,57.77395081]
[1734259819393,2.2847,218.9,218.89,62.91295537]
[1734259822095,2.2847,218.9,218.89,57.77395081]
[1734259823196,2.2851,218.86,218.84,6.39080568]
[1734259823499,6.39080568,218.9,218.85,5.13644291]
[1734259823694,6.39080568,218.9,218.86,5.13644291]
[1734259823898,6.39080568,218.9,218.87,5.13644291]
[1734259824100,6.39080568,218.9,218.84,6.39080568]
[1734259824300,6.39080568,218.9,218.85,5.13633835]
[1734259824502,6.39080568,218.9,218.86,5.13633835]
[1734259824698,6.39080568,218.9,218.87,5.13633835]
[1734259824892,6.39080568,218.9,218.84,6.39080568]
[1734259825095,6.39080568,218.9,218.85,5.13573255]
[1734259825298,6.39080568,218.9,218.84,6.39080568]
[1734259825499,6.39080568,218.9,218.85,5.13524394]
[1734259825698,2.285,218.87,218.86,5.13524394]
[1734259826194,2.285,218.87,218.84,6.39080568]
[1734259826601,2.285,218.87,218.85,5.13533416]
[1734259826898,2.285,218.87,218.86,5.13533416]
[1734259829406,2.285,218.87,218.84,8.67600568]
[1734259829603,2.285,218.87,218.85,5.1342666]
[1734259829803,2.285,218.87,218.86,5.1342666]
[1734259832607,2.285,218.87,218.84,8.67600568]
[1734259832903,2.285,218.87,218.85,5.13418343]
[1734259833100,2.285,218.87,218.86,5.13418343]
[1734259836505,2.2848,218.89,218.86,7.41918343]
[1734259836706,9.72495415,219.0,218.88,6.39080568]
[1734259837012,6.39080568,218.97,218.91,6.39080568]
[1734259837211,2.2843,218.94,218.91,6.39080568]
[1734259839212,2.2843,218.94,218.89,8.67550568]
[1734259839410,2.2843,218.94,218.9,5.1363537]
[1734259839614,2.2845,218.92,218.87,2.2849]
[1734259839808,6.39080568,218.93,218.88,5.1367086]
[1734259840106,6.39080568,218.93,218.86,9.25600568]
[1734259840306,6.39080568,218.93,218.87,5.13755507]
[1734259840502,2.2848,218.89,218.88,5.13755507]
[1734259841210,9.29685415,218.9,218.88,5.13755507]
[1734259841413,7.01215415,218.9,218.86,9.25600568]
[1734259841712,7.01215415,218.9,218.87,5.13830496]
[1734259841909,7.01215415,218.9,218.88,13.81391064]
[1734259842206,7.01215415,218.9,218.89,5.13830496]
[1734259845512,7.01215415,218.9,218.89,5.14209956]
[1734259846510,7.01215415,218.9,218.89,7.42689956]
[1734259846709,4.67795415,218.9,218.89,7.42689956]
[1734259848815,4.67795415,218.9,218.89,13.81875971]
[1734259855446,4.67795415,218.9,218.89,13.82047526]
[1734259857937,2.2843,218.94,218.89,13.82047526]
[1734259858141,2.2843,218.94,218.9,5.14486958]
[1734259858348,2.2843,218.94,218.91,5.14486958]
[1734259858651,2.2843,218.94,218.89,8.67560568]
[1734259858849,2.2843,218.94,218.9,5.14473484]
[1734259859045,2.2843,218.94,218.91,5.14473484]
[1734259859348,2.2843,218.94,218.89,8.67560568]
[1734259859553,2.2843,218.94,218.9,5.14458673]
[1734259859770,2.2843,218.94,218.91,5.14458673]
[1734259860054,2.2843,218.94,218.92,5.14458673]
[1734259860249,2.2843,218.94,218.89,8.67560568]
[1734259860445,2.2843,218.94,218.9,5.1444704]
[1734259860746,2.2843,218.94,218.91,5.1444704]
[1734259860958,2.2843,218.94,218.89,8.67560568]
[1734259861147,2.2843,218.94,218.9,5.14448853]
[1734259861351,2.2843,218.94,218.91,5.14448853]
[1734259861551,2.2843,218.94,218.89,8.67560568]
[1734259861753,2.2843,218.94,218.9,5.14433761]
[1734259861949,2.2843,218.94,218.91,5.14433761]
[1734259862255,2.2843,218.94,218.89,8.67560568]
[1734259862459,2.2843,218.94,218.9,5.14420019]
[1734259862750,2.2843,218.94,218.91,5.14420019]
[1734259862955,2.2843,218.94,218.89,8.67560568]
[1734259863152,2.2843,218.94,218.9,5.14418761]
[1734259863354,2.2843,218.94,218.91,5.14418761]
[1734259863553,2.2843,218.94,218.89,8.67560568]
[1734259863852,2.2843,218.94,218.9,5.14407249]
[1734259864058,2.2843,218.94,218.91,5.14407249]
[1734259864257,2.2843,218.94,218.89,8.67560568]
[1734259864456,2.2843,218.94,218.9,5.14394997]
[1734259864752,2.2843,218.94,218.91,5.14395898]
[1734259865056,2.2843,218.94,218.89,8.67560568]
[1734259865355,2.2843,218.94,218.9,5.14394363]
[1734259865554,2.2844,218.93,218.91,5.14394363]
[1734259865749,2.2844,218.93,218.89,8.67560568]
[1734259865952,2.2844,218.93,218.9,5.14382414]
[1734259866142,2.2844,218.93,218.91,5.14382414]
[1734259866343,2.2844,218.93,218.89,8.67560568]
[1734259866550,2.2844,218.93,218.9,5.14373231]
[1734259866851,2.2844,218.93,218.91,5.14373231]
[1734259867051,2.2844,218.93,218.89,8.67560568]
[1734259867341,2.2844,218.93,218.9,5.14373455]
[1734259867548,2.2844,218.93,218.91,5.14373599]
[1734259867742,6.39080568,218.93,218.87,59.79253177]
[1734259867940,6.39080568,218.89,218.88,5.14375198]
[1734259868152,8.67560568,218.89,218.88,5.14375198]
[1734259870032,2.285,218.88,218.83,7.68033504]
[1734259870233,6.39080568,218.89,218.84,5.14432417]
[1734259870425,6.39080568,218.89,218.85,5.14432417]
[1734259870627,2.285,218.88,218.83,7.68033504]
[1734259870923,2.285,218.88,218.86,5.14410802]
[1734259871127,2.285,218.88,218.87,5.14410802]
[1734259873830,2.285,218.88,218.84,8.67610568]
[1734259874128,2.2845,218.92,218.88,2.2848]
[1734259874325,1.96,218.95,218.89,6.39080568]
[1734259874521,1.96,218.95,218.9,5.14319582]
[1734259874522,8.35080568,218.95,218.9,5.14319582]
[1734259874722,1.96,218.95,218.91,5.14319582]
[1734259874924,2.2844,218.93,218.89,8.67550568]
[1734259875130,2.2844,218.93,218.9,5.14317971]
[1734259875431,2.2844,218.93,218.91,5.14317971]
[1734259875631,2.2843,218.94,218.9,2.2846]
[1734259875928,2.2843,218.94,218.91,5.14334843]
[1734259876133,2.2843,218.94,218.89,6.39080568]
[1734259876335,2.2843,218.94,218.9,5.14345293]
[1734259876533,2.2843,218.94,218.91,5.14345293]
[1734259876834,2.2843,218.94,218.89,6.39080568]
[1734259877031,2.2844,218.93,218.9,5.14354135]
[1734259877329,2.2844,218.93,218.91,5.14365488]
[1734259877634,2.2844,218.93,218.89,6.39080568]
[1734259877834,2.2844,218.93,218.9,5.14374178]
[1734259878035,2.2844,218.93,218.91,5.14374178]
[1734259878238,2.2844,218.93,218.89,6.39080568]
[1734259878430,2.2844,218.93,218.9,5.14402611]
[1734259878733,2.2844,218.93,218.91,5.14402611]
[1734259879041,2.2844,218.93,218.89,6.39080568]
[1734259879339,2.2844,218.93,218.9,5.14401353]
[1734259879639,2.2844,218.93,218.91,5.14401353]
[1734259879940,2.2844,218.93,218.89,6.39080568]
[1734259880142,2.2844,218.93,218.9,5.14427771]
[1734259880334,2.2844,218.93,218.91,5.14427771]
[1734259880639,2.2845,218.92,218.89,6.39080568]
[1734259880841,2.2845,218.92,218.9,5.14475578]
[1734259881036,2.2845,218.92,218.91,5.14475578]
[1734259882941,2.2843,218.94,218.91,11.53556146]
[1734259883137,2.2843,218.94,218.92,5.14475578]
[1734259883333,2.2843,218.94,218.91,6.39080568]
[1734259883538,2.2843,218.94,218.92,5.14506458]
[1734259883743,2.2843,218.94,218.91,6.39080568]
[1734259884042,2.2844,218.93,218.92,5.1450598]
[1734259886041,2.2844,218.93,218.91,6.39080568]
[1734259887043,1.4124,219.0,218.79,25.4385671]
[1734259887044,8.35080568,218.92,218.79,2.2857]
[1734259887251,1.4124,219.0,218.8,5.14541753]
[1734259887252,6.39080568,218.84,218.8,5.14541753]
[1734259887446,8.35080568,218.84,218.81,5.14541753]
[1734259887646,2.2858,218.79,218.76,6.39080568]
[1734259887845,6.39080568,218.82,218.77,5.14324478]
[1734259888046,2.2857,218.8,218.78,5.14324478]
[1734259888243,8.35080568,218.84,218.79,5.14324478]
[1734259888449,8.35080568,218.84,218.8,5.14324478]
[1734259888751,2.2856,218.81,218.78,6.39080568]
[1734259888950,2.2856,218.81,218.79,5.13954044]
[1734259889151,2.2856,218.81,218.8,5.13954044]
[1734259889350,2.2856,218.81,218.78,6.39080568]
[1734259889652,2.2855,218.83,218.79,5.13697651]
[1734259889845,2.2855,218.83,218.78,6.39080568]
[1734259890045,2.2855,218.83,218.79,5.13695092]
[1734259890254,2.2855,218.83,218.78,6.39080568]
[1734259890552,2.2855,218.83,218.79,5.13672577]
[1734259890855,2.2855,218.83,218.78,6.39080568]
[1734259891151,2.2855,218.83,218.79,5.13494192]
[1734259891343,2.2855,218.83,218.78,6.39080568]
[1734259891548,2.2855,218.83,218.79,5.13323816]
[1734259891747,2.2855,218.83,218.77,7.82810229]
[1734259891951,2.2855,218.83,218.79,6.39080568]
[1734259896555,1.96,218.84,218.79,6.39080568]
[1734259897855,2.2854,218.83,218.79,6.39080568]
[1734259898152,1.96,218.84,218.79,6.39080568]
[1734259898448,1.4777,218.9,218.83,6.39080568]
[1734259898449,4.2452,218.86,218.83,6.39080568]
[1734259898650,2.2852,218.86,218.83,6.39080568]
[1734259900754,1.96,218.87,218.83,6.39080568]
[1734259900959,4.245,218.87,218.83,6.39080568]
[1734259901561,2.285,218.87,218.83,6.39080568]
[1734259902161,2.2849,218.88,218.84,2.2853]
[1734259902862,2.285,218.87,218.83,8.67620568]
[1734259908867,8.35080568,218.89,218.82,6.39080568]
[1734259909367,2.2852,218.86,218.81,2.2855]
[1734259909665,2.2852,218.86,218.82,6.39080568]
[1734259910766,2.2852,218.86,218.82,8.67620568]
[1734259910966,2.2852,218.86,218.8,3.4156]
[1734259910967,5.46730883,218.92,218.8,3.4156]
[1734259911262,1.96,218.98,218.91,6.39080568]
[1734259911466,6.39080568,218.97,218.91,6.39080568]
[1734259911765,8.35080568,218.97,218.89,6.39080568]
[1734259912358,2.2842,218.95,218.9,2.2847]
[1734259913068,2.2842,218.95,218.9,8.67550568]
[1734259913464,2.2842,218.95,218.8,1.4556]
[1734259913465,6.39080568,218.95,218.8,1.4556]
[1734259913667,6.39080568,218.93,218.86,6.39080568]
[1734259913864,1.96,218.92,218.86,6.39080568]
[1734259914772,1.96,218.92,218.87,2.285]
[1734259918469,1.96,218.92,218.88,2.2848]
[1734259919569,1.96,218.92,218.89,2.2848]
[1734259920773,6.39080568,218.93,218.86,6.39080568]
[1734259920961,1.96,218.93,218.88,6.39080568]
[1734259921969,1.96,218.95,218.9,6.39080568]
[1734259922873,1.96,218.95,218.91,2.2845]
[1734259925768,78.57002117,218.98,218.8,2.9591]
[1734259925769,73.00792,218.98,218.94,6.39080568]
[1734259925969,73.00792,218.98,218.96,6.39080568]
[1734259927376,73.00792,218.98,218.9,59.95329012]
[1734259927579,73.00792,218.98,218.97,2.2839]
[1734259928473,66.45127415,218.98,218.97,2.2839]
[1734259929876,66.45127415,218.98,218.97,8.67470568]
[1734259931377,66.45127415,218.98,218.9,59.95329012]
[1734259931577,6.39080568,218.96,218.9,58.46409012]
[1734259931775,6.39080568,218.94,218.9,56.97849012]
[1734259931970,6.39080568,218.94,218.9,55.53779012]
[1734259932177,6.39080568,218.94,218.9,57.82239012]
[1734259932684,6.39080568,218.94,218.9,55.53779012]
[1734259933175,8.67510568,218.94,218.9,55.53779012]
[1734259933375,8.67510568,218.94,218.87,2.02]
[1734259933376,6.39080568,218.94,218.87,6.39080568]
[1734259933577,2.02,218.97,218.85,6.39080568]
[1734259933578,6.39080568,218.92,218.85,6.39080568]
[1734259933776,6.39080568,218.92,218.83,2.02]
[1734259933974,6.39080568,218.92,218.86,6.39080568]
[1734259934583,2.2846,218.91,218.86,8.67580568]
[1734259934883,2.02,218.93,218.88,6.39080568]
[1734259935680,4.3044,218.93,218.88,6.39080568]
[1734259937281,2.2845,218.92,218.88,6.39080568]
[1734259937982,2.2846,218.91,218.86,8.67590568]
[1734259938586,2.2847,218.9,218.86,8.67590568]
[1734259938785,2.2847,218.9,218.86,6.39080568]
[1734259938983,6.39080568,218.9,218.81,3.069]
[1734259939177,6.39080568,218.88,218.82,5.11824738]
[1734259939482,8.41080568,218.88,218.8,6.39080568]
[1734259939887,2.2852,218.85,218.8,6.39080568]
[1734259940286,2.2852,218.85,218.82,6.39080568]
[1734259940585,2.02,218.88,218.84,6.39080568]
[1734259940781,2.02,218.91,218.86,6.39080568]
[1734259940986,2.02,218.91,218.88,6.39080568]
[1734259941685,2.2847,218.9,218.88,6.39080568]
[1734259944591,2.02,218.91,218.88,6.39080568]
[1734259944789,4.3046,218.91,218.88,6.39080568]
[1734259949793,4.3046,218.91,218.86,8.67590568]
[1734259950594,43.77596636,218.97,218.87,2.285]
[1734259950595,2.2844,218.93,218.87,2.285]
[1734259950794,2.2844,218.93,218.88,6.39080568]
[1734259951487,2.02,218.94,218.88,6.39080568]
[1734259951689,2.2845,218.92,218.88,6.39080568]
[1734259953487,2.02,218.96,218.9,6.39080568]
[1734259955093,2.2842,218.95,218.9,6.39080568]
[1734259955294,2.02,218.96,218.9,6.39080568]
[1734259955494,52.18677204,218.97,218.9,6.39080568]
[1734259956495,2.2845,218.93,218.9,6.39080568]
[1734259958499,2.2845,218.92,218.9,6.39080568]
[1734259964711,2.2845,218.92,218.88,8.67570568]
[1734259964902,2.2845,218.92,218.89,5.12897095]
[1734259965103,2.2845,218.92,218.88,8.67570568]
[1734259965309,2.2845,218.92,218.89,5.12925915]
[1734259965505,6.39080568,218.9,218.81,1.5267]
[1734259965705,6.39080568,218.86,218.81,1.5267]
[1734259966102,2.2852,218.85,218.81,1.5267]
[1734259966306,6.39080568,218.86,218.81,1.5267]
[1734259967007,2.02,218.87,218.81,1.5267]
[1734259967207,8.41080568,218.87,218.81,1.5267]
[1734259968313,2.2853,218.85,218.81,1.5267]
[1734259970305,8.41080568,218.87,218.81,1.5267]
[1734259970510,2.2853,218.84,218.81,1.5267]
[1734259970713,2.2853,218.84,218.8,8.67650568]
[1734259971809,2.2853,218.84,218.82,6.39080568]
[1734259973715,2.2852,218.85,218.82,6.39080568]
[1734259975320,43.77596636,218.97,218.84,6.39080568]
[1734259975516,6.39080568,218.94,218.87,6.39080568]
[1734259975817,2.02,218.93,218.87,6.39080568]
[1734259976018,2.2848,218.9,218.87,6.39080568]
[1734259976421,2.2848,218.89,218.87,6.39080568]
[1734259986033,2.2849,218.88,218.87,6.39080568]
[1734259986331,2.02,218.91,218.84,6.39080568]
[1734259987633,2.2851,218.87,218.84,6.39080568]
[1734259989834,2.02,218.91,218.84,6.39080568]
[1734259990036,2.2851,218.86,218.84,6.39080568]
[1734259993835,2.285,218.87,218.84,6.39080568]
[1734259994236,2.02,218.91,218.84,6.39080568]
[1734259994432,2.02,218.91,218.84,8.67600568]
[1734259996440,2.2848,218.89,218.84,8.67600568]
[1734259997740,4.3046,218.91,218.87,2.2849]
[1734259998642,4.2846,218.91,218.87,2.2849]
[1734260006748,2.2847,218.9,218.87,2.2849]
[1734260011750,2.2847,218.9,218.86,8.67590568]
[1734260012148,2.2847,218.9,218.87,5.14321016]
[1734260012343,2.2847,218.9,218.87,10.28642032]
[1734260012543,2.2847,218.9,218.87,5.14321016]
[1734260013250,2.2847,218.9,218.88,5.14413815]
[1734260013452,2.2847,218.9,218.87,5.14321016]
[1734260013641,2.2847,218.9,218.88,5.14413815]
[1734260013844,2.2847,218.9,218.87,5.14321016]
[1734260014045,2.2847,218.9,218.88,5.14413539]
[1734260014247,2.2847,218.9,218.87,5.14321016]
[1734260014450,2.2847,218.9,218.88,5.14449325]
[1734260014749,2.2847,218.9,218.87,5.14321016]
[1734260014950,2.2848,218.89,218.88,5.14449572]
[1734260015349,2.2848,218.89,218.87,5.14321016]
[1734260015655,2.2848,218.89,218.88,5.14493482]
[1734260018550,2.2848,218.89,218.87,5.14321016]
[1734260018754,2.2848,218.89,218.88,5.147121]
[1734260022255,2.2848,218.89,218.86,8.67590568]
[1734260022462,2.2848,218.89,218.87,5.14826175]
[1734260022652,2.2848,218.89,218.88,5.14826175]
[1734260023953,2.2848,218.89,218.88,5.14847308]
[1734260025057,43.77596636,218.97,218.88,5.14847308]
[1734260025257,2.2847,218.9,218.86,8.67590568]
[1734260025655,2.2847,218.9,218.87,5.14826249]
[1734260025960,2.2847,218.9,218.88,5.14826249]
[1734260026258,2.2847,218.9,218.86,8.67590568]
[1734260026453,2.2847,218.9,218.87,5.1483427]
[1734260026654,2.2847,218.9,218.88,5.1483427]
[1734260026858,2.2847,218.9,218.86,8.67590568]
[1734260027059,2.2849,218.89,218.87,5.14828858]
[1734260027250,2.2849,218.89,218.84,6.39080568]
[1734260027455,8.37080568,218.92,218.85,5.14847943]
[1734260027655,2.2851,218.87,218.86,5.14847943]
[1734260030255,2.2851,218.87,218.86,5.14844388]
[1734260030662,2.2849,218.88,218.86,5.14844388]
[1734260030862,2.2849,218.88,218.87,5.14844388]
[1734260032165,2.2849,218.88,218.87,5.14848823]
[1734260034161,2.2852,218.85,218.78,1.98]
[1734260034472,2.2852,218.85,218.82,6.39080568]
[1734260034668,2.2852,218.85,218.83,5.1491569]
[1734260034864,2.2852,218.85,218.82,6.39080568]
[1734260035070,2.2852,218.85,218.83,5.14915767]
[1734260035269,2.2852,218.85,218.84,5.14915767]
[1734260037174,2.2851,218.87,218.84,11.53996335]
[1734260037374,2.2851,218.87,218.85,5.14915767]
[1734260037571,2.2851,218.87,218.84,6.39080568]
[1734260037771,2.2851,218.87,218.85,5.1478466]
[1734260037967,2.2851,218.86,218.8,5.58692679]
[1734260038276,2.2851,218.86,218.83,6.39080568]
[1734260038477,2.2851,218.86,218.84,5.14784993]
[1734260038673,2.2851,218.86,218.85,5.14784993]
[1734260040977,2.2851,218.86,218.85,5.14715239]
[1734260041181,2.2851,218.86,218.83,8.67620568]
[1734260041367,2.285,218.87,218.84,5.14708033]
[1734260041569,2.285,218.87,218.85,5.14708033]
[1734260041879,2.285,218.87,218.85,6.39080568]
[1734260042080,2.2848,218.89,218.86,5.14661989]
[1734260042379,2.2848,218.89,218.85,6.39080568]
[1734260042380,4.2648,218.89,218.87,5.14652648]
[1734260042577,4.2648,218.89,218.85,6.39080568]
[1734260042779,4.2648,218.89,218.86,5.14646086]
[1734260042973,4.2648,218.89,218.87,5.14646086]
[1734260043172,4.2648,218.89,218.85,8.67590568]
[1734260043669,4.2648,218.89,218.86,5.14631927]
[1734260043874,4.2648,218.89,218.87,5.14631927]
[1734260044076,4.2648,218.89,218.85,8.67590568]
[1734260044280,4.2648,218.89,218.86,5.14644861]
[1734260044578,4.2648,218.89,218.87,5.14644861]
[1734260044878,4.2648,218.89,218.85,8.67590568]
[1734260045072,4.2648,218.89,218.86,5.14648475]
[1734260045276,4.2648,218.89,218.87,5.14648475]
[1734260045476,5.58477004,218.95,218.87,6.39080568]
[1734260045679,6.39080568,218.93,218.88,5.14642918]
[1734260045876,6.39080568,218.93,218.87,6.39080568]
[1734260046076,6.39080568,218.93,218.88,5.14640601]
[1734260046276,2.2847,218.91,218.87,8.67580568]
[1734260046578,2.2847,218.91,218.88,5.14642383]
[1734260046780,2.2847,218.9,218.87,8.67580568]
[1734260046969,2.2847,218.9,218.88,5.14640844]
[1734260047171,2.2847,218.9,218.87,8.67580568]
[1734260047370,2.2847,218.9,218.88,5.14632299]
[1734260047570,2.2847,218.9,218.87,8.67580568]
[1734260047779,2.2847,218.9,218.88,5.14640385]
[1734260047973,2.2847,218.9,218.87,8.67580568]
[1734260048171,2.2847,218.9,218.88,5.14640385]
[1734260048371,2.2847,218.9,218.87,8.67580568]
[1734260048678,2.2847,218.9,218.88,5.14637197]
[1734260048878,2.2847,218.9,218.87,8.67580568]
[1734260049174,2.2847,218.9,218.88,5.14639181]
[1734260049380,2.2847,218.9,218.87,8.67580568]
[1734260049882,2.2847,218.9,218.88,5.14640073]
[1734260050182,2.2847,218.9,218.87,2.285]
[1734260050371,2.2847,218.9,218.88,5.14640042]
[1734260050572,2.2847,218.9,218.87,2.285]
[1734260050781,2.2847,218.9,218.88,5.14639617]
[1734260050979,2.2847,218.9,218.86,8.67590568]
[1734260051180,2.2847,218.9,218.87,5.14639617]
[1734260051378,2.2847,218.9,218.88,5.14639617]
[1734260051578,2.2847,218.9,218.86,8.67590568]
[1734260051777,2.2847,218.9,218.87,5.14639366]
[1734260051982,2.2847,218.9,218.88,5.14639366]
[1734260052182,2.2847,218.9,218.86,8.67590568]
[1734260052380,2.2847,218.9,218.87,5.14632375]
[1734260052681,2.2847,218.9,218.88,5.14632375]
[1734260052885,2.2848,218.89,218.86,8.67590568]
[1734260053080,2.2848,218.89,218.87,5.14637301]
[1734260053381,2.2848,218.89,218.88,5.14637301]
[1734260056185,2.2848,218.89,218.88,5.14636638]
[1734260062588,2.2848,218.89,218.88,5.14627075]
[1734260070289,2.2848,218.89,218.85,14.27804013]
[1734260070482,2.2848,218.89,218.88,5.1460905]
[1734260072390,2.2848,218.89,218.88,5.14612865]
[1734260080095,2.2848,218.89,218.88,5.14628738]
[1734260080292,2.2848,218.89,218.88,5.14690099]
[1734260083298,2.2848,218.89,218.88,5.14857478]
[1734260086300,8.35080568,218.91,218.83,8.67620568]
[1734260086499,2.2851,218.87,218.83,14.28921376]
[1734260086702,2.2851,218.87,218.84,5.15152902]
[1734260086896,2.2851,218.87,218.85,5.15152902]
[1734260087099,2.2851,218.87,218.86,5.15152902]
[1734260090503,2.2851,218.87,218.86,5.15291301]
[1734260094610,2.2849,218.89,218.86,5.15291301]
[1734260094810,2.2849,218.89,218.87,5.15291301]
[1734260095005,2.2849,218.89,218.88,5.15291301]
[1734260096303,2.2849,218.89,218.85,8.67600568]
[1734260096610,2.2849,218.89,218.86,5.15274218]
[1734260096805,2.2849,218.89,218.85,8.67600568]
[1734260097112,2.2849,218.89,218.86,5.15274617]
[1734260097311,2.2849,218.89,218.87,5.15274617]
[1734260097512,2.2849,218.89,218.88,5.15274617]
[1734260099915,2.2849,218.89,218.88,5.15251946]
[1734260101923,2.2849,218.89,218.85,8.67600568]
[1734260102221,2.2849,218.89,218.86,5.15247094]
[1734260102420,2.2849,218.89,218.87,5.15247094]
[1734260102619,2.2849,218.89,218.88,5.15247094]
[1734260103016,2.2847,218.9,218.88,5.15247094]
[1734260103215,2.2847,218.9,218.86,2.285]
[1734260103216,2.2847,218.9,218.89,5.15247094]
[1734260105323,2.2847,218.9,218.89,5.1524445]
[1734260105626,2.2847,218.9,218.87,2.2849]
[1734260105923,2.2847,218.9,218.89,5.15242115]
[1734260111425,66.45127415,218.98,218.89,11.54322683]
[1734260111633,1.96,218.97,218.91,6.39080568]
[1734260111833,8.35080568,218.97,218.92,5.15242115]
[1734260112031,2.2844,218.93,218.91,6.39080568]
[1734260112229,2.2844,218.93,218.92,5.15162455]
[1734260115225,2.2844,218.93,218.89,8.67560568]
[1734260115429,2.2844,218.93,218.9,5.14775269]
[1734260115627,2.2844,218.93,218.89,8.67560568]
[1734260115932,2.2844,218.93,218.9,5.14692937]
[1734260116233,2.2844,218.93,218.91,5.14692937]
[1734260116433,2.2844,218.93,218.89,8.67560568]
[1734260116638,2.2844,218.93,218.9,7.43097311]
[1734260116933,2.2844,218.93,218.91,11.53707879]
[1734260117133,2.2844,218.93,218.92,5.14627311]
[1734260118635,2.2844,218.93,218.91,6.39080568]
[1734260121736,2.2844,218.93,218.89,2.2848]
[1734260121932,2.2846,218.91,218.89,6.39080568]
[1734260122137,2.2846,218.91,218.9,5.14180731]
[1734260122439,6.39080568,218.95,218.88,6.39080568]
[1734260122640,6.39080568,218.95,218.89,5.14171197]
[1734260122641,2.2847,218.9,218.89,5.14171197]
[1734260122937,2.2847,218.9,218.89,5.14170643]
[1734260123334,2.2848,218.89,218.86,57.08673165]